bitfinex/quotes_SOLUSD_20220114
["timestamp","ask_amount","ask_price","bid_price","bid_amount"]
[1642177890476,0.25,146.98,146.92,9.86]
[1642177890680,2.721,146.99,146.92,9.86]
[1642177890878,2.721,147.01,146.92,15.774]
[1642177891078,45.776,147.04,146.93,2.721]
[1642177891280,45.776,147.04,146.94,9.86]
[1642177891479,51.776,147.04,146.95,10.2044]
[1642177891681,27.40223389,147.03,146.96,9.86]
[1642177891880,30.12323389,147.03,146.96,9.86]
[1642177892080,2.721,147.09,146.97,2.721]
[1642177892280,3.88538088,147.03,146.98,9.86]
[1642177892480,3.88538088,147.03,146.98,15.552]
[1642177892706,3.88538088,147.03,146.98,26.0047]
[1642177892912,3.88538088,147.03,146.98,32.0047]
[1642177893107,3.88538088,147.03,146.99,6.0181294]
[1642177893311,26.37447756,147.08,147.0,9.86]
[1642177893510,32.62447756,147.08,147.0,10.11]
[1642177894310,32.62447756,147.08,147.0,20.3112]
[1642177894711,3.88538088,147.07,147.0,20.3112]
[1642177895109,10.13538088,147.07,147.0,26.3112]
[1642177895613,10.13538088,147.07,146.96,123.26]
[1642177895811,2.72,147.06,146.97,9.86]
[1642177896011,12.85538088,147.06,146.97,9.86]
[1642177896213,23.18070195,147.05,146.97,9.86]
[1642177896413,4.13538088,147.06,146.97,135.84]
[1642177896614,0.25,147.05,146.97,142.442]
[1642177896812,4.13538088,147.06,146.97,142.442]
[1642177897014,3.88538088,147.05,146.97,142.442]
[1642177897415,3.88538088,147.05,146.99,8.61744586]
[1642177897627,3.88538088,147.05,147.0,9.86]
[1642177897915,3.88538088,147.05,147.0,18.467]
[1642177898118,0.25,147.06,147.0,18.717]
[1642177898320,8.97,147.09,147.01,10.2004]
[1642177898517,8.97,147.09,147.02,9.86]
[1642177898716,8.97,147.09,147.03,22.56275549]
[1642177899016,6.25,147.09,147.04,9.86]
[1642177899215,3.88370461,147.08,147.04,9.86]
[1642177899615,10.13370461,147.08,147.04,9.86]
[1642177901621,10.13370461,147.08,147.0,2.719]
[1642177901622,14.70473987,147.07,147.0,2.719]
[1642177901820,14.70473987,147.07,147.01,9.86]
[1642177902020,23.67473987,147.07,147.02,9.86]
[1642177902223,20.95473987,147.07,147.02,9.86]
[1642177902423,6.25,147.07,147.02,9.86]
[1642177902621,6.25,147.07,147.02,27.3341]
[1642177902823,0.25,147.07,147.02,27.3341]
[1642177903023,6.0,147.07,147.02,27.3341]
[1642177903423,6.25,147.07,147.03,26.55033642]
[1642177903628,2.72,147.11,147.03,36.41033642]
[1642177903853,2.72,147.11,147.06,10.1973]
[1642177904023,2.719,147.13,147.07,9.86]
[1642177904224,47.7932,147.17,147.07,9.86]
[1642177904423,47.7932,147.17,147.07,10.11]
[1642177904625,30.03055957,147.16,147.07,10.11]
[1642177904825,2.718,147.15,147.07,15.86]
[1642177905026,2.718,147.15,147.07,16.11]
[1642177905829,15.63923906,147.13,147.07,16.11]
[1642177906228,3.88263698,147.14,147.07,26.3065]
[1642177906427,4.13263698,147.14,147.08,2.719]
[1642177906628,4.13263698,147.14,147.09,9.86]
[1642177906829,4.13263698,147.14,147.09,16.487]
[1642177907030,4.13263698,147.14,147.09,16.737]
[1642177907229,27.4166672,147.14,147.09,16.737]
[1642177907532,27.4166672,147.14,147.09,16.487]
[1642177907729,27.4166672,147.14,147.09,9.86]
[1642177908133,3.88241786,147.13,147.09,9.86]
[1642177908532,4.13241786,147.13,147.09,9.86]
[1642177909034,68.0,147.12,147.04,123.26]
[1642177909232,68.0,147.12,147.03,2.718]
[1642177909233,74.60180058,147.12,147.05,9.86]
[1642177909434,12.85180058,147.12,147.05,9.86]
[1642177910033,18.50313143,147.11,147.05,9.86]
[1642177910233,2.719,147.1,147.05,9.86]
[1642177910438,6.60180058,147.1,147.05,9.86]
[1642177910636,6.85180058,147.1,147.05,9.86]
[1642177911371,27.1666672,147.08,147.05,9.86]
[1642177911562,6.06219997,147.07,147.05,9.86]
[1642177911961,27.1666672,147.08,147.05,9.86]
[1642177912161,27.1666672,147.08,147.05,17.241]
[1642177913366,3.03219997,147.07,147.05,17.241]
[1642177913663,3.88280058,147.09,147.05,17.491]
[1642177914163,3.88280058,147.1,147.05,27.6889]
[1642177915063,3.88280058,147.13,147.05,33.6889]
[1642177915265,3.88280058,147.13,147.06,2.719]
[1642177915463,3.88280058,147.13,147.09,10.1941]
[1642177915664,3.88280058,147.13,147.09,27.6881]
[1642177915865,3.88280058,147.13,147.09,53.1247112]
[1642177916468,3.88280058,147.13,147.09,59.1247112]
[1642177916868,1.49783702,147.13,147.09,59.1247112]
[1642177917064,1.49783702,147.13,147.11,10.1915]
[1642177917265,1.49783702,147.13,147.12,18.57159015]
[1642177917466,5.38030763,147.15,147.12,26.21259015]
[1642177917669,5.38030763,147.15,147.12,23.49459015]
[1642177918369,5.38030763,147.15,147.13,10.1918]
[1642177918567,2.718,147.23,147.14,9.86]
[1642177918775,3.88118043,147.19,147.14,9.86]
[1642177918971,3.88118043,147.19,147.14,16.11]
[1642177919170,3.88118043,147.19,147.15,2.718]
[1642177919374,3.88118043,147.19,147.18,10.1884]
[1642177919569,3.88118043,147.19,147.18,33.3094]
[1642177920170,2.717,147.25,147.18,33.3094]
[1642177920171,18.38263543,147.24,147.18,9.86]
[1642177920372,10.1922,147.22,147.15,12.578]
[1642177920571,2.717,147.21,147.15,12.578]
[1642177921074,2.717,147.21,147.16,23.50830183]
[1642177921273,7.76079847,147.23,147.17,9.86]
[1642177921477,8.01079847,147.23,147.17,15.86]
[1642177921679,8.01079847,147.23,147.17,16.11]
[1642177921874,7.76079847,147.23,147.18,10.1888]
[1642177922074,2.717,147.27,147.19,9.86]
[1642177922276,30.08442039,147.27,147.19,15.643]
[1642177922480,27.36742039,147.27,147.19,23.56489952]
[1642177922680,2.716,147.26,147.19,23.56489952]
[1642177922880,2.716,147.26,147.21,10.1861]
[1642177923081,8.966,147.26,147.21,9.86]
[1642177923280,2.966,147.26,147.21,9.86]
[1642177923481,8.966,147.26,147.21,9.86]
[1642177923886,8.716,147.26,147.21,27.2947]
[1642177924085,2.716,147.29,147.21,27.5447]
[1642177924284,2.88706231,147.3,147.21,27.5447]
[1642177924483,2.88706231,147.3,147.21,33.5447]
[1642177924484,0.17106231,147.3,147.21,33.5447]
[1642177924883,0.17106231,147.3,147.22,28.29917668]
[1642177925082,0.17106231,147.3,147.26,10.1809]
[1642177925283,0.17106231,147.3,147.27,2.88102467]
[1642177925484,0.17106231,147.3,147.27,3.13102467]
[1642177926084,0.17106231,147.3,147.28,20.0403]
[1642177926585,0.17106231,147.3,147.28,26.2903]
[1642177926785,0.17106231,147.3,147.28,26.0403]
[1642177926986,0.17106231,147.3,147.28,20.0403]
[1642177927386,0.17106231,147.3,147.28,35.0823]
[1642177928291,0.095,147.35,147.28,35.0823]
[1642177928487,0.095,147.35,147.32,10.1762]
[1642177928688,0.095,147.35,147.32,26.8512]
[1642177928890,0.095,147.35,147.33,6.14320914]
[1642177929088,0.095,147.35,147.33,6.39320914]
[1642177929489,0.095,147.35,147.34,20.0374]
[1642177929887,0.095,147.35,147.34,20.2874]
[1642177931614,0.095,147.35,147.34,20.0374]
[1642177931814,0.095,147.35,147.34,9.86]
[1642177932013,0.095,147.35,147.32,10.1786]
[1642177932014,6.06219997,147.34,147.32,9.86]
[1642177932413,0.095,147.35,147.32,9.86]
[1642177932614,0.095,147.35,147.32,15.576]
[1642177932814,0.095,147.35,147.32,21.576]
[1642177933413,0.095,147.35,147.32,21.826]
[1642177934415,0.095,147.35,147.32,32.0048]
[1642177937418,0.095,147.35,147.32,20.0388]
[1642177938519,0.095,147.35,147.32,34.3638]
[1642177939325,0.095,147.35,147.32,157.8738]
[1642177944027,8.964,147.43,147.32,157.8738]
[1642177945528,19.6128137,147.42,147.32,157.8738]
[1642177945728,2.714,147.41,147.32,157.8738]
[1642177945929,22.3268137,147.42,147.32,157.8738]
[1642177946128,28.5768137,147.42,147.32,157.8738]
[1642177946428,22.3268137,147.42,147.32,157.8738]
[1642177946630,28.14026429,147.42,147.32,157.8738]
[1642177947429,8.52745059,147.42,147.32,157.8738]
[1642177947830,5.81345059,147.42,147.32,157.8738]
[1642177949535,5.81345059,147.42,147.35,123.26]
[1642177949834,5.81345059,147.42,147.38,10.1711]
[1642177950032,5.81345059,147.42,147.39,133.12]
[1642177950432,0.07962902,147.48,147.39,139.37]
[1642177951035,5.81143388,147.47,147.4,10.1694]
[1642177951232,5.31143388,147.47,147.41,9.86]
[1642177951434,5.31143388,147.47,147.42,9.86]
[1642177951733,5.31143388,147.47,147.43,9.86]
[1642177951933,5.31143388,147.47,147.43,16.11]
[1642177952333,0.07962902,147.48,147.43,16.11]
[1642177952935,0.07962902,147.48,147.44,10.1701]
[1642177953135,0.07962902,147.48,147.32,23.6421]
[1642177953335,20.82143356,147.46,147.35,123.26]
[1642177953535,2.713,147.45,147.36,9.86]
[1642177953735,23.53443356,147.46,147.36,9.86]
[1642177954336,23.53443356,147.46,147.41,10.1722]
[1642177954337,2.713,147.46,147.41,10.1722]
[1642177954536,47.56812902,147.48,147.41,20.0322]
[1642177954537,2.713,147.47,147.41,20.0322]
[1642177954738,0.07962902,147.48,147.41,20.2822]
[1642177955537,0.07962902,147.48,147.41,27.98297588]
[1642177955939,0.07962902,147.48,147.41,149.5422]
[1642177957780,0.07962902,147.48,147.41,149.2922]
[1642177957980,2.712,147.47,147.41,149.2922]
[1642177958182,1.79162902,147.48,147.41,149.2922]
[1642177958482,2.04162902,147.48,147.41,149.2922]
[1642177958881,2.04162902,147.48,147.41,143.2922]
[1642177959083,1.79162902,147.48,147.41,143.2922]
[1642177959282,27.70016435,147.49,147.41,143.2922]
[1642177959582,27.70016435,147.49,147.41,143.5422]
[1642177959784,12.8839,147.51,147.41,143.5422]
[1642177959984,2.712,147.51,147.41,143.5422]
[1642177960484,2.962,147.51,147.41,143.5422]
[1642177960685,27.40266475,147.5,147.41,133.12]
[1642177960886,2.712,147.49,147.41,133.12]
[1642177961084,4.66277588,147.49,147.41,9.86]
[1642177961286,68.0,147.48,147.37,9.86]
[1642177961486,18.26713388,147.46,147.37,15.86]
[1642177961686,2.713,147.45,147.37,9.86]
[1642177962084,10.1765,147.44,147.37,9.86]
[1642177962287,2.713,147.43,147.37,9.86]
[1642177962485,25.13255632,147.43,147.37,9.86]
[1642177964487,25.13255632,147.43,147.37,10.11]
[1642177964696,25.13255632,147.43,147.37,9.86]
[1642177966587,25.13255632,147.43,147.37,10.11]
[1642177966787,25.13255632,147.43,147.37,9.86]
[1642177967188,35.30985632,147.43,147.34,9.86]
[1642177967387,68.0,147.41,147.34,9.86]
[1642177967616,2.714,147.4,147.34,9.86]
[1642177967787,2.964,147.41,147.34,9.86]
[1642177968188,10.1799,147.39,147.34,9.86]
[1642177968389,10.1799,147.39,147.3,9.86]
[1642177968587,2.714,147.38,147.3,9.86]
[1642177968988,2.964,147.38,147.3,9.86]
[1642177969188,2.714,147.38,147.3,39.58899919]
[1642177969588,23.98353961,147.37,147.3,39.58899919]
[1642177969790,2.714,147.36,147.3,9.86]
[1642177970191,2.714,147.4,147.31,2.714]
[1642177970389,46.8617,147.48,147.32,9.86]
[1642177970591,46.8617,147.48,147.33,2.713]
[1642177970790,2.713,147.47,147.34,9.86]
[1642177970990,23.81343825,147.46,147.34,9.86]
[1642177971290,2.713,147.45,147.34,9.86]
[1642177971492,2.963,147.45,147.34,15.86]
[1642177971891,4.66377588,147.45,147.34,15.86]
[1642177972092,14.84007588,147.45,147.34,9.86]
[1642177972293,68.0,147.44,147.34,9.86]
[1642177972495,2.713,147.43,147.34,9.86]
[1642177972994,21.85636038,147.42,147.34,9.86]
[1642177973293,12.8924,147.41,147.34,9.86]
[1642177973493,13.1424,147.41,147.34,9.86]
[1642177974495,1.70077588,147.4,147.3,12.574]
[1642177974698,10.1827,147.35,147.3,9.86]
[1642177975129,33.99613825,147.35,147.3,9.86]
[1642177976438,34.24613825,147.35,147.3,9.86]
[1642177976634,10.1841,147.33,147.3,9.86]
[1642177976834,3.03,147.32,147.27,9.86]
[1642177977035,9.02719997,147.32,147.25,9.86]
[1642177977235,21.85636038,147.31,147.25,9.86]
[1642177977635,22.10636038,147.31,147.25,9.86]
[1642177978436,10.1865,147.3,147.25,9.86]
[1642177978640,12.9015,147.3,147.25,9.86]
[1642177978837,13.1515,147.3,147.25,9.86]
[1642177979436,10.4365,147.3,147.25,9.86]
[1642177980339,36.30061163,147.3,147.25,9.86]
[1642177981141,68.0,147.29,147.25,9.86]
[1642177981344,10.1888,147.26,147.21,9.86]
[1642177981940,22.521687,147.25,147.2,2.716]
[1642177982146,24.22246288,147.25,147.2,2.716]
[1642177982341,24.47246288,147.25,147.2,2.716]
[1642177983446,10.1919,147.23,147.2,2.716]
[1642177983648,8.77919997,147.22,147.2,2.716]
[1642177983850,34.6433116,147.22,147.2,2.716]
[1642177984043,32.1763116,147.22,147.2,2.716]
[1642177985342,38.1927,147.21,147.2,2.716]
[1642177985547,38.4427,147.21,147.2,0.006]
[1642177985749,41.1597,147.21,147.2,0.006]
[1642177986149,41.1597,147.21,147.15,9.86]
[1642177987149,13.1597,147.21,147.15,9.86]
[1642177988550,12.9097,147.21,147.15,9.86]
[1642177988753,2.717,147.21,147.15,10.11]
[1642177988956,36.05571163,147.22,147.15,10.11]
[1642177989153,36.05571163,147.22,147.15,9.86]
[1642177989960,2.717,147.21,147.15,9.86]
[1642177990167,2.717,147.21,147.12,9.86]
[1642177990357,10.1943,147.19,147.12,9.86]
[1642177990558,19.805687,147.18,147.12,9.86]
[1642177990959,20.055687,147.18,147.12,9.86]
[1642177991560,26.0114,147.21,147.12,9.86]
[1642177991760,2.717,147.21,147.12,9.86]
[1642177991961,0.25,147.21,147.12,20.3026]
[1642177992764,2.718,147.2,147.12,20.3026]
[1642177992964,17.52269572,147.2,147.12,26.3026]
[1642177993367,14.80469572,147.2,147.12,20.3026]
[1642177994487,24.99769572,147.2,147.12,20.3026]
[1642177995093,24.99769572,147.2,147.12,21.32968131]
[1642177995294,14.80469572,147.2,147.12,21.32968131]
[1642177995489,14.55469572,147.2,147.12,21.32968131]
[1642177996292,14.55469572,147.2,147.12,20.3026]
[1642177996892,14.55469572,147.2,147.12,26.3026]
[1642177997791,2.718,147.21,147.12,26.3026]
[1642177997992,23.8978,147.22,147.12,26.3026]
[1642177998192,24.1478,147.22,147.12,26.3026]
[1642177998593,23.8978,147.22,147.12,26.3026]
[1642178000291,10.4415,147.22,147.12,26.3026]
[1642178000892,26.5415,147.25,147.12,26.3026]
[1642178001093,26.5415,147.25,147.12,28.00337588]
[1642178001894,51.70867286,147.25,147.12,28.00337588]
[1642178002495,61.89837286,147.25,147.12,28.00337588]
[1642178002700,12.9067,147.25,147.12,28.00337588]
[1642178002898,12.9067,147.25,147.19,10.1878]
[1642178002899,2.717,147.25,147.19,10.1878]
[1642178003096,50.8397,147.31,147.2,9.86]
[1642178003296,10.0,147.3,147.2,9.86]
[1642178003497,12.9031,147.29,147.2,16.11]
[1642178003699,31.7972678,147.28,147.2,15.86]
[1642178003896,31.7972678,147.28,147.2,9.86]
[1642178004097,2.716,147.27,147.2,9.86]
[1642178004396,4.41677588,147.27,147.16,9.86]
[1642178004696,48.612,147.26,147.14,9.86]
[1642178004897,13.87253083,147.24,147.14,20.0517]
[1642178005099,2.717,147.23,147.14,26.0517]
[1642178005300,2.717,147.23,147.14,26.3017]
[1642178006300,12.9082,147.23,147.14,26.3017]
[1642178006598,10.1912,147.23,147.14,26.3017]
[1642178006800,1.93963944,147.22,147.14,26.3017]
[1642178007001,1.93963944,147.22,147.14,20.3017]
[1642178008600,26.78170098,147.21,147.14,20.3017]
[1642178009401,26.78170098,147.21,147.14,9.86]
[1642178009806,26.78170098,147.21,147.14,10.11]
[1642178010006,27.03170098,147.21,147.14,10.11]
[1642178010202,28.97134042,147.21,147.14,10.11]
[1642178010403,2.717,147.2,147.14,10.11]
[1642178010605,2.217,147.2,147.14,10.11]
[1642178010802,2.217,147.2,147.14,9.86]
[1642178012004,4.15663944,147.2,147.14,9.86]
[1642178012403,14.34993944,147.2,147.14,9.86]
[1642178013005,10.1933,147.2,147.14,9.86]
[1642178013913,81.1603,147.2,147.11,11.56745517]
[1642178014105,13.1603,147.2,147.11,11.56745517]
[1642178014806,15.09993944,147.2,147.11,9.86]
[1642178015405,15.09993944,147.2,147.11,10.11]
[1642178015605,15.09993944,147.2,147.11,9.86]
[1642178015804,18.88809765,147.18,147.11,9.86]
[1642178016006,29.08249765,147.18,147.11,9.86]
[1642178016205,1.93963944,147.19,147.11,9.86]
[1642178016206,1.93963944,147.19,147.11,20.0539]
[1642178016408,1.93963944,147.19,147.11,28.1179]
[1642178016608,1.93963944,147.19,147.11,34.1179]
[1642178016906,3.944e-05,147.19,147.13,68.0]
[1642178017107,3.944e-05,147.19,147.16,10.1876]
[1642178017307,3.944e-05,147.19,147.17,9.86]
[1642178017507,3.944e-05,147.19,147.17,16.11]
[1642178017909,43.73934049,147.28,147.17,16.11]
[1642178018112,12.9052,147.27,147.17,15.86]
[1642178018310,12.9052,147.27,147.17,10.11]
[1642178018510,13.1552,147.27,147.17,10.11]
[1642178018712,36.7566,147.27,147.17,10.11]
[1642178019310,36.7566,147.27,147.18,3.49526886]
[1642178019511,36.7566,147.27,147.18,13.60526886]
[1642178019712,40.63586144,147.27,147.18,9.86]
[1642178020745,68.0,147.26,147.18,9.86]
[1642178020946,10.1916,147.22,147.18,9.86]
[1642178021145,2.717,147.21,147.18,9.86]
[1642178021548,3.03219997,147.2,147.18,9.86]
[1642178021949,26.4807008,147.2,147.14,20.0516]
[1642178022146,26.4807008,147.2,147.14,9.86]
[1642178022545,29.5107008,147.2,147.14,10.11]
[1642178023147,6.06219997,147.2,147.14,10.11]
[1642178023345,6.06219997,147.2,147.14,20.3018]
[1642178024148,6.06219997,147.2,147.14,29.10106924]
[1642178024346,6.06219997,147.2,147.14,26.3018]
[1642178025349,6.06219997,147.2,147.14,48.24902643]
[1642178026151,2.717,147.25,147.14,48.24902643]
[1642178026352,10.1908,147.24,147.14,48.24902643]
[1642178026653,2.717,147.25,147.14,48.24902643]
[1642178026850,28.64753381,147.24,147.14,47.99902643]
[1642178027853,2.717,147.25,147.14,47.99902643]
[1642178028053,3.87926144,147.27,147.15,192.96077588]
[1642178028254,3.87926144,147.27,147.16,9.86]
[1642178028456,3.87926144,147.27,147.21,10.1853]
[1642178028655,3.87926144,147.27,147.21,20.0453]
[1642178028855,33.94318449,147.3,147.21,35.52827492]
[1642178029857,6.59526144,147.33,147.21,35.52827492]
[1642178030056,6.59526144,147.33,147.22,1.70077588]
[1642178030256,3.87926144,147.33,147.27,10.1825]
[1642178030455,3.87926144,147.33,147.27,10.4325]
[1642178031057,27.51451764,147.34,147.27,10.4325]
[1642178031257,27.51451764,147.34,147.26,9.86]
[1642178031457,2.715,147.33,147.26,10.11]
[1642178032458,2.715,147.33,147.26,20.2934]
[1642178032859,2.715,147.33,147.26,28.05028952]
[1642178033358,31.39377908,147.34,147.26,20.2934]
[1642178033758,27.51451764,147.34,147.26,20.2934]
[1642178034559,6.59426144,147.35,147.26,20.2934]
[1642178034760,3.87926144,147.35,147.26,20.2934]
[1642178034961,3.87926144,147.35,147.26,32.5634]
[1642178035159,3.87926144,147.35,147.27,69.70077588]
[1642178035361,3.87926144,147.35,147.31,10.1784]
[1642178035561,3.87926144,147.37,147.31,20.9238825]
[1642178035959,3.87926144,147.37,147.31,20.2884]
[1642178036359,3.87926144,147.37,147.31,10.11]
[1642178036559,3.87926144,147.39,147.31,10.11]
[1642178036759,2.714,147.38,147.31,10.11]
[1642178037563,7.75541965,147.37,147.31,10.11]
[1642178037963,7.75541965,147.37,147.31,20.29]
[1642178038565,7.75541965,147.37,147.31,26.29]
[1642178039771,3.87926144,147.4,147.31,26.29]
[1642178039967,3.87926144,147.4,147.31,34.615]
[1642178040967,3.87926144,147.4,147.31,28.615]
[1642178041168,2.714,147.39,147.31,20.29]
[1642178041367,10.46847383,147.41,147.31,20.29]
[1642178041566,7.75447383,147.41,147.31,20.29]
[1642178042168,7.75447383,147.4,147.31,20.04]
[1642178042371,7.75447383,147.4,147.31,9.86]
[1642178042568,2.714,147.39,147.31,9.86]
[1642178043069,3.87926144,147.38,147.31,9.86]
[1642178043271,2.714,147.37,147.31,9.86]
[1642178043469,3.87926144,147.38,147.31,9.86]
[1642178043671,2.714,147.37,147.31,9.86]
[1642178043868,13.94463425,147.36,147.31,10.11]
[1642178044071,2.714,147.35,147.26,9.86]
[1642178044469,2.964,147.35,147.26,9.86]
[1642178044973,2.964,147.35,147.26,15.86]
[1642178045469,10.1844,147.34,147.26,10.11]
[1642178045669,2.715,147.33,147.26,10.11]
[1642178045871,2.965,147.33,147.23,9.86]
[1642178046073,0.25,147.33,147.23,9.86]
[1642178046270,2.715,147.32,147.23,9.86]
[1642178046500,2.965,147.32,147.23,9.86]
[1642178046906,10.7217681,147.32,147.23,9.86]
[1642178047101,10.7217681,147.32,147.23,10.11]
[1642178047301,10.1863,147.31,147.23,10.11]
[1642178047504,2.716,147.3,147.23,10.11]
[1642178047703,27.3683879,147.3,147.23,10.11]
[1642178048601,3.87750666,147.31,147.23,20.2953]
[1642178048802,3.87926144,147.32,147.23,21.99607588]
[1642178049002,3.87926144,147.34,147.23,27.99607588]
[1642178049601,31.16002328,147.33,147.23,27.99607588]
[1642178049803,31.16002328,147.33,147.23,26.2953]
[1642178051005,30.72376144,147.36,147.23,27.99607588]
[1642178051203,28.00876144,147.36,147.23,27.99607588]
[1642178051406,3.87926144,147.36,147.23,219.25607588]
[1642178051604,3.87926144,147.36,147.23,219.51607588]
[1642178051806,3.87926144,147.37,147.23,219.51607588]
[1642178052004,3.87926144,147.37,147.23,226.11632616]
[1642178052205,3.87926144,147.37,147.25,123.26]
[1642178052406,3.87926144,147.37,147.32,10.1776]
[1642178052609,3.87926144,147.37,147.33,9.86]
[1642178053110,6.59426144,147.39,147.33,16.11]
[1642178053409,3.87926144,147.39,147.33,16.11]
[1642178054206,3.87926144,147.39,147.34,10.1774]
[1642178054410,2.714,147.4,147.33,10.11]
[1642178054607,2.714,147.38,147.33,10.11]
[1642178054807,2.714,147.4,147.33,10.11]
[1642178055607,6.59326144,147.4,147.33,10.11]
[1642178056407,6.59326144,147.4,147.33,20.2885]
[1642178057711,2.714,147.4,147.33,20.2885]
[1642178058812,2.714,147.4,147.33,10.11]
[1642178059011,2.714,147.4,147.33,9.86]
[1642178059511,6.59326144,147.4,147.33,10.11]
[1642178061012,6.59326144,147.4,147.33,20.2885]
[1642178062313,2.714,147.4,147.33,20.2885]
[1642178064014,6.59326144,147.4,147.33,20.2885]
[1642178064216,3.87926144,147.4,147.33,20.2885]
[1642178064615,3.87926144,147.4,147.33,26.2885]
[1642178065017,3.87926144,147.41,147.33,27.98927588]
[1642178066216,3.87926144,147.43,147.33,27.98927588]
[1642178067516,26.89870235,147.44,147.33,27.98927588]
[1642178068821,31.39736144,147.45,147.33,27.98927588]
[1642178069021,6.59326144,147.45,147.33,27.98927588]
[1642178069221,3.87926144,147.45,147.33,27.98927588]
[1642178070023,6.59226144,147.45,147.33,27.98927588]
[1642178070523,6.59226144,147.45,147.33,26.2885]
[1642178070722,2.713,147.45,147.33,26.0385]
[1642178071022,27.2253,147.45,147.33,26.0385]
[1642178071223,105.4021,147.45,147.33,26.0385]
[1642178071521,105.6521,147.45,147.33,20.0385]
[1642178071721,109.28136144,147.45,147.33,20.0385]
[1642178071921,109.53136144,147.45,147.33,20.0385]
[1642178072649,119.39136144,147.45,147.31,10.1794]
[1642178072922,3.87926144,147.43,147.31,10.1794]
[1642178073124,12.8927,147.42,147.32,9.86]
[1642178073722,17.02196144,147.42,147.32,9.86]
[1642178074123,1.70077588,147.41,147.29,438.73641786]
[1642178074322,10.182,147.38,147.29,438.73641786]
[1642178074523,24.04173373,147.37,147.29,438.73641786]
[1642178075424,24.04173373,147.37,147.28,9.86]
[1642178075824,2.714,147.37,147.28,20.0419]
[1642178076024,2.715,147.39,147.28,26.2919]
[1642178076225,26.55006144,147.4,147.28,27.99267588]
[1642178076526,3.87926144,147.4,147.28,95.99267588]
[1642178077025,22.59662673,147.4,147.28,95.99267588]
[1642178077425,22.59662673,147.4,147.28,27.99267588]
[1642178077825,22.59662673,147.4,147.28,151.25267588]
[1642178079225,26.7086,147.41,147.28,151.25267588]
[1642178079425,2.714,147.41,147.29,123.26]
[1642178079628,3.87926144,147.43,147.36,10.1757]
[1642178079827,3.87926144,147.43,147.36,20.0357]
[1642178080027,3.87926144,147.43,147.36,20.2857]
[1642178080229,24.32580413,147.42,147.36,20.2857]
[1642178080427,24.32580413,147.42,147.36,10.11]
[1642178081729,34.50460413,147.42,147.36,10.11]
[1642178081928,34.50460413,147.42,147.32,10.1788]
[1642178082129,2.714,147.41,147.33,9.86]
[1642178082330,2.714,147.41,147.32,10.4288]
[1642178083330,12.8939,147.41,147.32,10.4288]
[1642178083729,68.0,147.4,147.29,9.86]
[1642178083930,2.714,147.39,147.29,9.86]
[1642178084228,2.714,147.39,147.28,3.52391348]
[1642178084428,2.964,147.39,147.28,13.38391348]
[1642178085029,2.964,147.39,147.28,10.11]
[1642178085329,10.1817,147.38,147.28,10.11]
[1642178085529,21.3439945,147.36,147.28,10.11]
[1642178085829,2.715,147.35,147.28,10.11]
[1642178087231,12.8986,147.35,147.28,10.11]
[1642178087432,10.1836,147.35,147.28,0.25]
[1642178087663,10.4336,147.35,147.25,13.38391348]
[1642178087863,2.715,147.34,147.25,9.86]
[1642178088064,2.965,147.34,147.25,9.86]
[1642178088466,0.25,147.34,147.25,9.86]
[1642178088667,2.715,147.33,147.25,9.86]